[Event "December 5 Late 2023"]
[Site "https://www.chess.com"]
[Date "2023.12.05"]
[Round "7"]
[White "Matrix3x3a"]
[Black "Calcada, Lucas Galvan"]
[Result "0-1"]
[Board "104"]
[TimeControl "180+1"]
[BlackFideId "22746099"]
[WhiteElo "2435"]
[BlackElo "2008"]
[BlackTeam "BRA"]
[WhiteClock "0:00:12"]
[BlackClock "0:00:49"]

1. d4 {[%clk 0:03:00]}  Nf6 {[%clk 0:02:59]} 2. c4 {[%clk 0:03:00]}  e6 {[%clk 0:03:00]} 3. Nf3 {[%clk 0:03:00]}  d5 {[%clk 0:03:00]} 4. g3 {[%clk 0:03:00]}  Be7 {[%clk 0:02:59]} 5. Bg2 {[%clk 0:03:00]}  O-O {[%clk 0:03:00]} 6. O-O {[%clk 0:03:00]}  a6 {[%clk 0:02:52]} 7. Qc2 {[%clk 0:03:00]}  dxc4 {[%clk 0:02:51]} 8. a4 {[%clk 0:02:59]}  b6 {[%clk 0:02:51]} 9. Qxc4 {[%clk 0:02:54]}  Bb7 {[%clk 0:02:48]} 10. Rd1 {[%clk 0:02:54]}  Nbd7 {[%clk 0:02:46]} 11. Nc3 {[%clk 0:02:52]}  Rc8 {[%clk 0:02:44]} 12. Qd3 {[%clk 0:02:44]}  c5 {[%clk 0:02:40]} 13. e4 {[%clk 0:02:43]}  cxd4 {[%clk 0:02:40]} 14. Nxd4 {[%clk 0:02:43]}  Nc5 {[%clk 0:02:39]} 15. Qe2 {[%clk 0:02:42]}  Qc7 {[%clk 0:02:39]} 16. f3 {[%clk 0:02:34]}  Rfd8 {[%clk 0:02:25]} 17. Be3 {[%clk 0:02:33]}  Qb8 {[%clk 0:01:56]} 18. Bf4 {[%clk 0:02:16]}  e5 {[%clk 0:01:54]} 19. Nf5 {[%clk 0:02:14]}  Bf8 {[%clk 0:01:50]} 20. Be3 {[%clk 0:02:04]}  g6 {[%clk 0:01:47]} 21. Bg5 {[%clk 0:01:53]}  Rc6 {[%clk 0:01:40]} 22. Ne3 {[%clk 0:01:49]}  h6 {[%clk 0:01:39]} 23. Bxf6 {[%clk 0:01:42]}  Rxf6 {[%clk 0:01:40]} 24. Ncd5 {[%clk 0:01:42]}  Rfd6 {[%clk 0:01:37]} 25. Rac1 {[%clk 0:00:17]}  Ne6 {[%clk 0:01:36]} 26. Nc4 {[%clk 0:00:17]}  R6d7 {[%clk 0:01:33]} 27. Ncxb6 {[%clk 0:00:17]}  Rd6 {[%clk 0:01:16]} 28. Nc4 {[%clk 0:00:16]}  Nd4 {[%clk 0:01:13]} 29. Qe3 {[%clk 0:00:15]}  R6d7 {[%clk 0:01:11]} 30. Nf6+ {[%clk 0:00:15]}  Kg7 {[%clk 0:01:11]} 31. Nxd7 {[%clk 0:00:16]}  Rxd7 {[%clk 0:01:12]} 32. f4 {[%clk 0:00:16]}  Ne6 {[%clk 0:01:09]} 33. Nxe5 {[%clk 0:00:16]}  Rxd1+ {[%clk 0:01:08]} 34. Rxd1 {[%clk 0:00:17]}  Bc5 {[%clk 0:01:08]} 35. Qf2 {[%clk 0:00:13]}  Bxf2+ {[%clk 0:01:07]} 36. Kxf2 {[%clk 0:00:13]}  Qa7+ {[%clk 0:01:07]} 37. Ke2 {[%clk 0:00:14]}  Qb6 {[%clk 0:01:06]} 38. Rd7 {[%clk 0:00:14]}  Qxb2+ {[%clk 0:01:05]} 39. Kf1 {[%clk 0:00:14]}  Qb1+ {[%clk 0:00:58]} 40. Kf2 {[%clk 0:00:13]}  Bxe4 {[%clk 0:00:57]} 41. Rd6 {[%clk 0:00:12]}  Qc2+ {[%clk 0:00:55]} 42. Ke1 {[%clk 0:00:12]}  Qxg2 {[%clk 0:00:54]} 43. Rd7 {[%clk 0:00:12]}  Qxh2 {[%clk 0:00:51]} 44. Rxf7+ {[%clk 0:00:13]}  Kg8 {[%clk 0:00:51]} 45. Ra7 {[%clk 0:00:12]}  Qxg3+ {[%clk 0:00:51]} 46. Kd2 {[%clk 0:00:11]}  Qxf4+ {[%clk 0:00:50]} 47. Ke1 {[%clk 0:00:11]}  Qxe5 {[%clk 0:00:50]} 48. Ra8+ {[%clk 0:00:12]}  Bxa8+ {[%clk 0:00:50]} 49. Kd1 {[%clk 0:00:12]}  Qd4+ {[%clk 0:00:50]} 50. Ke1 {[%clk 0:00:12]}  Qe3+ {[%clk 0:00:50]} 51. Kd1 {[%clk 0:00:13]}  Bf3+ {[%clk 0:00:50]} 52. Kc2 {[%clk 0:00:12]}  Nd4+ {[%clk 0:00:50]} 53. Kb2 {[%clk 0:00:12]}  Qb3+ {[%clk 0:00:50]} 54. Ka1 {[%clk 0:00:12]}  Nc2# {[%clk 0:00:49]} 0-1

[Event "December 5 Late 2023"]
[Site "https://www.chess.com"]
[Date "2023.12.05"]
[Round "7"]
[White "Fernandez Hernandez, Gerardo"]
[Black "Chan, Yi Ren Daniel"]
[Result "0-1"]
[Board "105"]
[TimeControl "180+1"]
[WhiteFideId "2207400"]
[BlackFideId "5801583"]
[WhiteElo "2220"]
[BlackElo "2791"]
[WhiteTeam "ESP"]
[BlackTeam "SGP"]
[WhiteClock "0:00:04"]
[BlackClock "0:00:15"]

1. e4 {[%clk 0:03:00]}  c6 {[%clk 0:02:56]} 2. d4 {[%clk 0:03:00]}  d5 {[%clk 0:02:56]} 3. exd5 {[%clk 0:03:01]}  cxd5 {[%clk 0:02:57]} 4. c4 {[%clk 0:03:02]}  Nf6 {[%clk 0:02:56]} 5. Nc3 {[%clk 0:03:02]}  e6 {[%clk 0:02:52]} 6. c5 {[%clk 0:03:02]}  Be7 {[%clk 0:02:50]} 7. Nf3 {[%clk 0:03:01]}  O-O {[%clk 0:02:50]} 8. Bf4 {[%clk 0:03:01]}  b6 {[%clk 0:02:50]} 9. b4 {[%clk 0:02:53]}  a5 {[%clk 0:02:50]} 10. a3 {[%clk 0:02:52]}  axb4 {[%clk 0:02:48]} 11. axb4 {[%clk 0:02:53]}  Rxa1 {[%clk 0:02:48]} 12. Qxa1 {[%clk 0:02:54]}  Nc6 {[%clk 0:02:45]} 13. Qa4 {[%clk 0:02:22]}  Bd7 {[%clk 0:01:36]} 14. Bb5 {[%clk 0:01:58]}  Qc8 {[%clk 0:01:07]} 15. Bxc6 {[%clk 0:01:48]}  Bxc6 {[%clk 0:01:05]} 16. b5 {[%clk 0:01:47]}  Be8 {[%clk 0:01:03]} 17. c6 {[%clk 0:01:43]}  Ne4 {[%clk 0:01:04]} 18. Nxe4 {[%clk 0:01:32]}  dxe4 {[%clk 0:01:05]} 19. Ne5 {[%clk 0:01:31]}  Bd6 {[%clk 0:00:57]} 20. O-O {[%clk 0:01:20]}  f6 {[%clk 0:00:50]} 21. Nd3 {[%clk 0:01:07]}  Qc7 {[%clk 0:00:51]} 22. Bxd6 {[%clk 0:01:02]}  Qxd6 {[%clk 0:00:52]} 23. Nb2 {[%clk 0:00:52]}  f5 {[%clk 0:00:52]} 24. Rd1 {[%clk 0:00:37]}  f4 {[%clk 0:00:52]} 25. Nc4 {[%clk 0:00:37]}  Qd5 {[%clk 0:00:34]} 26. Nxb6 {[%clk 0:00:25]}  Qg5 {[%clk 0:00:34]} 27. Qc4 {[%clk 0:00:25]}  f3 {[%clk 0:00:20]} 28. g3 {[%clk 0:00:14]}  Qf5 {[%clk 0:00:20]} 29. d5 {[%clk 0:00:12]}  Bf7 {[%clk 0:00:15]} 30. d6 {[%clk 0:00:11]}  e5 {[%clk 0:00:13]} 31. Qf1 {[%clk 0:00:10]}  e3 {[%clk 0:00:13]} 32. fxe3 {[%clk 0:00:09]}  Qc2 {[%clk 0:00:14]} 33. d7 {[%clk 0:00:06]}  Bb3 {[%clk 0:00:13]} 34. Re1 {[%clk 0:00:06]}  f2+ {[%clk 0:00:13]} 35. Kh1 {[%clk 0:00:05]}  Qe4+ {[%clk 0:00:13]} 36. Qg2 {[%clk 0:00:04]}  f1=Q+ {[%clk 0:00:14]} 37. Rxf1 {[%clk 0:00:04]}  Rxf1# {[%clk 0:00:15]} 0-1

[Event "December 5 Late 2023"]
[Site "https://www.chess.com"]
[Date "2023.12.05"]
[Round "7"]
[White "NovakRatko"]
[Black "Kujawski, Adam"]
[Result "1-0"]
[Board "112"]
[TimeControl "180+1"]
[BlackFideId "1100920"]
[WhiteElo "2462"]
[BlackElo "2290"]
[BlackTeam "POL"]
[WhiteClock "0:00:17"]
[BlackClock "0:00:00"]

1. d4 {[%clk 0:03:00]}  d5 {[%clk 0:02:59]} 2. c4 {[%clk 0:03:01]}  e6 {[%clk 0:02:59]} 3. cxd5 {[%clk 0:03:01]}  exd5 {[%clk 0:02:58]} 4. Nc3 {[%clk 0:03:02]}  Nf6 {[%clk 0:02:58]} 5. f3 {[%clk 0:03:01]}  Bb4 {[%clk 0:02:54]} 6. a3 {[%clk 0:03:00]}  Bxc3+ {[%clk 0:02:53]} 7. bxc3 {[%clk 0:03:00]}  c5 {[%clk 0:02:53]} 8. Bg5 {[%clk 0:02:59]}  Qa5 {[%clk 0:02:32]} 9. Qd2 {[%clk 0:02:59]}  Nbd7 {[%clk 0:02:10]} 10. e3 {[%clk 0:02:58]}  h6 {[%clk 0:02:08]} 11. Bh4 {[%clk 0:02:57]}  O-O {[%clk 0:02:06]} 12. Bd3 {[%clk 0:02:58]}  b6 {[%clk 0:01:59]} 13. Ne2 {[%clk 0:02:57]}  Ba6 {[%clk 0:01:58]} 14. O-O {[%clk 0:02:56]}  cxd4 {[%clk 0:01:49]} 15. exd4 {[%clk 0:02:38]}  Bxd3 {[%clk 0:01:47]} 16. Qxd3 {[%clk 0:02:38]}  Qa4 {[%clk 0:01:42]} 17. Rfb1 {[%clk 0:02:33]}  Rfe8 {[%clk 0:01:32]} 18. Rb4 {[%clk 0:02:32]}  Qc6 {[%clk 0:01:31]} 19. Bf2 {[%clk 0:02:19]}  Rac8 {[%clk 0:01:31]} 20. Rc1 {[%clk 0:02:10]}  Qe6 {[%clk 0:01:19]} 21. Ng3 {[%clk 0:02:09]}  Nf8 {[%clk 0:01:12]} 22. Re1 {[%clk 0:01:50]}  Qc6 {[%clk 0:00:59]} 23. Rxe8 {[%clk 0:01:45]}  Rxe8 {[%clk 0:00:59]} 24. c4 {[%clk 0:01:42]}  Ng6 {[%clk 0:00:54]} 25. cxd5 {[%clk 0:01:39]}  Nxd5 {[%clk 0:00:48]} 26. Rc4 {[%clk 0:01:25]}  Qb5 {[%clk 0:00:40]} 27. Qc2 {[%clk 0:01:20]}  Ngf4 {[%clk 0:00:29]} 28. h3 {[%clk 0:01:13]}  g6 {[%clk 0:00:28]} 29. Ne4 {[%clk 0:01:13]}  Re6 {[%clk 0:00:17]} 30. a4 {[%clk 0:01:10]}  Qd7 {[%clk 0:00:13]} 31. Qd2 {[%clk 0:00:58]}  f5 {[%clk 0:00:12]} 32. Ng3 {[%clk 0:00:45]}  h5 {[%clk 0:00:11]} 33. Rc1 {[%clk 0:00:36]}  h4 {[%clk 0:00:09]} 34. Nf1 {[%clk 0:00:36]}  Ne2+ {[%clk 0:00:09]} 35. Kh1 {[%clk 0:00:35]}  Nxc1 {[%clk 0:00:10]} 36. Qxc1 {[%clk 0:00:35]}  Qc6 {[%clk 0:00:09]} 37. Qg5 {[%clk 0:00:32]}  Kg7 {[%clk 0:00:06]} 38. Bxh4 {[%clk 0:00:21]}  Qc4 {[%clk 0:00:06]} 39. Ng3 {[%clk 0:00:19]}  Ne7 {[%clk 0:00:02]} 40. Nh5+ {[%clk 0:00:18]}  Kf7 {[%clk 0:00:00]} 41. Kh2 {[%clk 0:00:17]} 1-0

[Event "December 5 Late 2023"]
[Site "https://www.chess.com"]
[Date "2023.12.05"]
[Round "7"]
[White "Clawitter, Craig"]
[Black "Mizzi, Jack"]
[Result "0-1"]
[Board "114"]
[TimeControl "180+1"]
[WhiteFideId "2023105"]
[BlackFideId "5602521"]
[WhiteElo "2226"]
[BlackElo "2444"]
[WhiteTeam "USA"]
[BlackTeam "MLT"]
[WhiteClock "0:00:00"]
[BlackClock "0:01:05"]

1. e4 {[%clk 0:03:00]}  c6 {[%clk 0:02:59]} 2. d4 {[%clk 0:03:00]}  d5 {[%clk 0:03:00]} 3. e5 {[%clk 0:03:01]}  Bf5 {[%clk 0:02:59]} 4. Nf3 {[%clk 0:03:01]}  e6 {[%clk 0:02:59]} 5. Be2 {[%clk 0:03:01]}  Nd7 {[%clk 0:02:59]} 6. O-O {[%clk 0:03:00]}  h5 {[%clk 0:03:00]} 7. Nbd2 {[%clk 0:03:00]}  Be7 {[%clk 0:03:00]} 8. Nb3 {[%clk 0:03:00]}  g5 {[%clk 0:03:00]} 9. Ne1 {[%clk 0:02:59]}  h4 {[%clk 0:02:54]} 10. h3 {[%clk 0:02:40]}  Nh6 {[%clk 0:02:53]} 11. f4 {[%clk 0:02:39]}  Rg8 {[%clk 0:02:49]} 12. fxg5 {[%clk 0:02:26]}  Bxg5 {[%clk 0:02:48]} 13. Kh2 {[%clk 0:02:21]}  Qe7 {[%clk 0:02:47]} 14. Nf3 {[%clk 0:02:14]}  Bxc1 {[%clk 0:02:33]} 15. Qxc1 {[%clk 0:02:15]}  Rg6 {[%clk 0:02:33]} 16. Qf4 {[%clk 0:01:57]}  O-O-O {[%clk 0:02:24]} 17. Nxh4 {[%clk 0:01:48]}  Ng4+ {[%clk 0:02:14]} 18. Bxg4 {[%clk 0:01:38]}  Rxg4 {[%clk 0:02:10]} 19. Nxf5 {[%clk 0:01:27]}  exf5 {[%clk 0:02:02]} 20. hxg4 {[%clk 0:01:21]}  Qh4+ {[%clk 0:02:02]} 21. Kg1 {[%clk 0:01:12]}  fxg4 {[%clk 0:02:01]} 22. Qh2 {[%clk 0:00:58]}  Qg5 {[%clk 0:01:58]} 23. Qg3 {[%clk 0:00:52]}  Rh8 {[%clk 0:01:57]} 24. Rxf7 {[%clk 0:00:39]}  Nf8 {[%clk 0:01:53]} 25. Nc5 {[%clk 0:00:19]}  Qh5 {[%clk 0:01:49]} 26. e6 {[%clk 0:00:19]}  Nxe6 {[%clk 0:01:41]} 27. Re7 {[%clk 0:00:11]}  Qh1+ {[%clk 0:01:34]} 28. Kf2 {[%clk 0:00:11]}  Rf8+ {[%clk 0:01:28]} 29. Ke3 {[%clk 0:00:10]}  Qxa1 {[%clk 0:01:27]} 30. Nxe6 {[%clk 0:00:09]}  Qg1+ {[%clk 0:01:11]} 31. Kd3 {[%clk 0:00:08]}  Rf3+ {[%clk 0:01:05]} 32. Qxf3 {[%clk 0:00:00]}  gxf3 {[%clk 0:01:05]} 0-1

[Event "December 5 Late 2023"]
[Site "https://www.chess.com"]
[Date "2023.12.05"]
[Round "7"]
[White "JERO-8914"]
[Black "Floresvillar Gonzalez, Luis Migu"]
[Result "1-0"]
[Board "115"]
[TimeControl "180+1"]
[BlackFideId "5100542"]
[WhiteElo "2399"]
[BlackElo "2214"]
[BlackTeam "MEX"]
[WhiteClock "0:00:57"]
[BlackClock "0:00:00"]

1. e4 {[%clk 0:03:00]}  c6 {[%clk 0:02:47]} 2. Nf3 {[%clk 0:02:58]}  d5 {[%clk 0:02:46]} 3. Nc3 {[%clk 0:02:59]}  Bg4 {[%clk 0:02:43]} 4. d4 {[%clk 0:02:57]}  dxe4 {[%clk 0:02:41]} 5. Nxe4 {[%clk 0:02:58]}  Nd7 {[%clk 0:02:38]} 6. Bc4 {[%clk 0:02:54]}  e6 {[%clk 0:02:36]} 7. h3 {[%clk 0:02:51]}  Bh5 {[%clk 0:02:32]} 8. Ng3 {[%clk 0:02:51]}  Bg6 {[%clk 0:02:31]} 9. c3 {[%clk 0:02:51]}  Ngf6 {[%clk 0:02:29]} 10. O-O {[%clk 0:02:51]}  Bd6 {[%clk 0:02:28]} 11. Ne2 {[%clk 0:02:43]}  b5 {[%clk 0:02:24]} 12. Bb3 {[%clk 0:02:42]}  a5 {[%clk 0:02:23]} 13. a4 {[%clk 0:02:38]}  O-O {[%clk 0:02:20]} 14. Nf4 {[%clk 0:02:35]}  Qc7 {[%clk 0:02:13]} 15. Nd3 {[%clk 0:02:30]}  Nd5 {[%clk 0:02:04]} 16. axb5 {[%clk 0:02:18]}  cxb5 {[%clk 0:02:03]} 17. Bxd5 {[%clk 0:02:07]}  exd5 {[%clk 0:02:01]} 18. Nde5 {[%clk 0:02:00]}  Nxe5 {[%clk 0:01:59]} 19. dxe5 {[%clk 0:01:59]}  Bxe5 {[%clk 0:01:53]} 20. Qxd5 {[%clk 0:01:59]}  Bf4 {[%clk 0:01:29]} 21. Qxb5 {[%clk 0:01:47]}  Bxc1 {[%clk 0:01:26]} 22. Rfxc1 {[%clk 0:01:46]}  Rfb8 {[%clk 0:01:20]} 23. Qd5 {[%clk 0:01:45]}  Rd8 {[%clk 0:01:15]} 24. Qe5 {[%clk 0:01:38]}  Qb6 {[%clk 0:01:10]} 25. c4 {[%clk 0:01:18]}  f6 {[%clk 0:01:08]} 26. Qe7 {[%clk 0:01:02]}  Qxb2 {[%clk 0:01:02]} 27. Rab1 {[%clk 0:01:02]}  Qa2 {[%clk 0:00:00]} 28. Rb7 {[%clk 0:00:57]} 1-0

[Event "December 5 Late 2023"]
[Site "https://www.chess.com"]
[Date "2023.12.05"]
[Round "7"]
[White "Einarsson, Halldor Gretar"]
[Black "Blanco Diez, David"]
[Result "0-1"]
[Board "116"]
[TimeControl "180+1"]
[WhiteFideId "2300150"]
[BlackFideId "32032927"]
[WhiteElo "2214"]
[BlackElo "2398"]
[WhiteTeam "ISL"]
[BlackTeam "ESP"]
[WhiteClock "0:00:00"]
[BlackClock "0:00:41"]

1. d4 {[%clk 0:02:56]}  Nf6 {[%clk 0:02:43]} 2. c4 {[%clk 0:02:56]}  e6 {[%clk 0:02:44]} 3. g3 {[%clk 0:02:56]}  Bb4+ {[%clk 0:02:42]} 4. Bd2 {[%clk 0:02:56]}  a5 {[%clk 0:02:41]} 5. Nf3 {[%clk 0:02:54]}  b6 {[%clk 0:02:34]} 6. Nc3 {[%clk 0:02:52]}  Bb7 {[%clk 0:02:33]} 7. Bg2 {[%clk 0:02:50]}  O-O {[%clk 0:02:33]} 8. O-O {[%clk 0:02:50]}  d6 {[%clk 0:02:33]} 9. Re1 {[%clk 0:02:36]}  Bxc3 {[%clk 0:02:27]} 10. Bxc3 {[%clk 0:02:35]}  Ne4 {[%clk 0:02:28]} 11. Qc2 {[%clk 0:02:32]}  Nxc3 {[%clk 0:02:26]} 12. Qxc3 {[%clk 0:02:31]}  f5 {[%clk 0:02:24]} 13. d5 {[%clk 0:02:04]}  e5 {[%clk 0:02:18]} 14. h4 {[%clk 0:02:00]}  h6 {[%clk 0:02:18]} 15. e4 {[%clk 0:01:55]}  f4 {[%clk 0:02:13]} 16. Bh3 {[%clk 0:01:50]}  Bc8 {[%clk 0:02:09]} 17. Bxc8 {[%clk 0:01:49]}  Qxc8 {[%clk 0:02:10]} 18. Kg2 {[%clk 0:01:49]}  Qg4 {[%clk 0:02:08]} 19. a4 {[%clk 0:01:21]}  Nd7 {[%clk 0:02:07]} 20. Ra3 {[%clk 0:01:19]}  Rf7 {[%clk 0:01:55]} 21. Nh2 {[%clk 0:01:18]}  Qg6 {[%clk 0:01:49]} 22. Qf3 {[%clk 0:00:31]}  Raf8 {[%clk 0:01:26]} 23. Qg4 {[%clk 0:00:30]}  Qxg4 {[%clk 0:01:16]} 24. Nxg4 {[%clk 0:00:30]}  h5 {[%clk 0:01:16]} 25. Nh2 {[%clk 0:00:30]}  fxg3 {[%clk 0:01:17]} 26. fxg3 {[%clk 0:00:29]}  Rf2+ {[%clk 0:01:17]} 27. Kh3 {[%clk 0:00:28]}  Rxb2 {[%clk 0:01:14]} 28. g4 {[%clk 0:00:20]}  Rff2 {[%clk 0:01:10]} 29. Nf3 {[%clk 0:00:20]}  hxg4+ {[%clk 0:01:06]} 30. Kxg4 {[%clk 0:00:20]}  Nf6+ {[%clk 0:01:06]} 31. Kf5 {[%clk 0:00:20]}  Kf7 {[%clk 0:01:02]} 32. Rg1 {[%clk 0:00:12]}  Rbe2 {[%clk 0:00:47]} 33. c5 {[%clk 0:00:04]}  bxc5 {[%clk 0:00:40]} 34. Rb3 {[%clk 0:00:00]}  Rxe4 {[%clk 0:00:41]} 0-1

[Event "December 5 Late 2023"]
[Site "https://www.chess.com"]
[Date "2023.12.05"]
[Round "7"]
[White "Jing, Andrew"]
[Black "Uryupin, Igor"]
[Result "0-1"]
[Board "117"]
[TimeControl "180+1"]
[WhiteFideId "30984076"]
[BlackFideId "4182529"]
[WhiteElo "2212"]
[BlackElo "2397"]
[WhiteTeam "USA"]
[BlackTeam "RUS"]
[WhiteClock "0:00:55"]
[BlackClock "0:01:02"]

1. d4 {[%clk 0:03:00]}  d5 {[%clk 0:02:58]} 2. Bf4 {[%clk 0:02:57]}  Nf6 {[%clk 0:02:56]} 3. e3 {[%clk 0:02:52]}  e6 {[%clk 0:02:56]} 4. Nf3 {[%clk 0:02:47]}  c5 {[%clk 0:02:56]} 5. Nbd2 {[%clk 0:02:45]}  Nc6 {[%clk 0:02:47]} 6. c3 {[%clk 0:02:44]}  Bd6 {[%clk 0:02:47]} 7. Ne5 {[%clk 0:02:40]}  Qc7 {[%clk 0:02:45]} 8. Ndf3 {[%clk 0:02:26]}  O-O {[%clk 0:02:41]} 9. Bd3 {[%clk 0:02:22]}  Nd7 {[%clk 0:02:37]} 10. Bxh7+ {[%clk 0:02:08]}  Kxh7 {[%clk 0:02:35]} 11. Ng5+ {[%clk 0:02:05]}  Kg8 {[%clk 0:02:34]} 12. Nxd7 {[%clk 0:01:59]}  Bxf4 {[%clk 0:02:25]} 13. h4 {[%clk 0:01:59]}  Qxd7 {[%clk 0:02:14]} 14. Qh5 {[%clk 0:01:51]}  Re8 {[%clk 0:01:55]} 15. exf4 {[%clk 0:01:49]}  e5 {[%clk 0:01:42]} 16. dxe5 {[%clk 0:01:39]}  Qf5 {[%clk 0:01:30]} 17. g4 {[%clk 0:01:27]}  Qxf4 {[%clk 0:01:18]} 18. Qh7+ {[%clk 0:01:06]}  Kf8 {[%clk 0:01:14]} 19. Qh8+ {[%clk 0:01:05]}  Ke7 {[%clk 0:01:14]} 20. Qxg7 {[%clk 0:00:55]}  Nxe5 {[%clk 0:01:02]} 0-1

[Event "December 5 Late 2023"]
[Site "https://www.chess.com"]
[Date "2023.12.05"]
[Round "7"]
[White "Mickiewicz, Piotr"]
[Black "Keller, Peter"]
[Result "1-0"]
[Board "119"]
[TimeControl "180+1"]
[WhiteFideId "1114891"]
[BlackFideId "1272105"]
[WhiteElo "2384"]
[BlackElo "2191"]
[WhiteTeam "POL"]
[BlackTeam "GER"]
[WhiteClock "0:00:26"]
[BlackClock "0:00:00"]

1. Nf3 {[%clk 0:03:00]}  d5 {[%clk 0:02:56]} 2. g3 {[%clk 0:02:58]}  Bg4 {[%clk 0:02:54]} 3. Bg2 {[%clk 0:02:59]}  c6 {[%clk 0:02:52]} 4. O-O {[%clk 0:02:57]}  e6 {[%clk 0:02:53]} 5. b3 {[%clk 0:02:56]}  Nf6 {[%clk 0:02:47]} 6. Bb2 {[%clk 0:02:56]}  Nbd7 {[%clk 0:02:46]} 7. h3 {[%clk 0:02:50]}  Bxf3 {[%clk 0:02:38]} 8. exf3 {[%clk 0:02:49]}  Bd6 {[%clk 0:02:35]} 9. f4 {[%clk 0:02:47]}  O-O {[%clk 0:02:34]} 10. Re1 {[%clk 0:02:45]}  Re8 {[%clk 0:02:32]} 11. d3 {[%clk 0:02:45]}  e5 {[%clk 0:02:32]} 12. fxe5 {[%clk 0:02:43]}  Bxe5 {[%clk 0:02:33]} 13. Bxe5 {[%clk 0:02:40]}  Nxe5 {[%clk 0:02:16]} 14. Nd2 {[%clk 0:02:38]}  Qa5 {[%clk 0:02:10]} 15. Nf3 {[%clk 0:02:10]}  Nxf3+ {[%clk 0:01:56]} 16. Bxf3 {[%clk 0:02:11]}  Qc3 {[%clk 0:01:49]} 17. Rc1 {[%clk 0:02:07]}  a5 {[%clk 0:01:46]} 18. a4 {[%clk 0:02:06]}  Kf8 {[%clk 0:01:36]} 19. h4 {[%clk 0:02:02]}  Re6 {[%clk 0:01:33]} 20. Rxe6 {[%clk 0:02:00]}  fxe6 {[%clk 0:01:34]} 21. Qe2 {[%clk 0:01:59]}  e5 {[%clk 0:01:31]} 22. Qe1 {[%clk 0:01:55]}  Qd4 {[%clk 0:01:23]} 23. Qe3 {[%clk 0:01:50]}  Qxe3 {[%clk 0:01:17]} 24. fxe3 {[%clk 0:01:49]}  Re8 {[%clk 0:01:16]} 25. Be2 {[%clk 0:01:48]}  d4 {[%clk 0:01:12]} 26. e4 {[%clk 0:01:42]}  Ke7 {[%clk 0:00:59]} 27. g4 {[%clk 0:01:41]}  Nd7 {[%clk 0:00:50]} 28. Kg2 {[%clk 0:01:27]}  Rf8 {[%clk 0:00:50]} 29. g5 {[%clk 0:01:26]}  Rf4 {[%clk 0:00:45]} 30. Kg3 {[%clk 0:01:26]}  Nc5 {[%clk 0:00:43]} 31. Bg4 {[%clk 0:01:22]}  Kd6 {[%clk 0:00:28]} 32. Bf5 {[%clk 0:01:08]}  g6 {[%clk 0:00:21]} 33. Bg4 {[%clk 0:01:06]}  b5 {[%clk 0:00:20]} 34. Rh1 {[%clk 0:00:45]}  bxa4 {[%clk 0:00:15]} 35. bxa4 {[%clk 0:00:46]}  Nxa4 {[%clk 0:00:15]} 36. Ra1 {[%clk 0:00:46]}  Nc3 {[%clk 0:00:10]} 37. Rxa5 {[%clk 0:00:47]}  Rf1 {[%clk 0:00:05]} 38. Ra7 {[%clk 0:00:47]}  Rg1+ {[%clk 0:00:04]} 39. Kh3 {[%clk 0:00:46]}  Rh1+ {[%clk 0:00:05]} 40. Kg3 {[%clk 0:00:39]}  Rg1+ {[%clk 0:00:04]} 41. Kf3 {[%clk 0:00:40]}  Rf1+ {[%clk 0:00:05]} 42. Kg2 {[%clk 0:00:40]}  Rc1 {[%clk 0:00:05]} 43. Rxh7 {[%clk 0:00:37]}  Rxc2+ {[%clk 0:00:06]} 44. Kg3 {[%clk 0:00:37]}  Rd2 {[%clk 0:00:06]} 45. h5 {[%clk 0:00:32]}  gxh5 {[%clk 0:00:05]} 46. Bf5 {[%clk 0:00:31]}  Rxd3+ {[%clk 0:00:04]} 47. Kh4 {[%clk 0:00:30]}  Rd1 {[%clk 0:00:02]} 48. Rd7+ {[%clk 0:00:29]}  Kc5 {[%clk 0:00:02]} 49. g6 {[%clk 0:00:30]}  d3 {[%clk 0:00:02]} 50. g7 {[%clk 0:00:30]}  d2 {[%clk 0:00:02]} 51. g8=Q {[%clk 0:00:28]}  Rh1+ {[%clk 0:00:03]} 52. Bh3 {[%clk 0:00:27]}  Nd5 {[%clk 0:00:02]} 53. Rxd5+ {[%clk 0:00:25]}  cxd5 {[%clk 0:00:00]} 54. Qxd5+ {[%clk 0:00:26]} 1-0